[Event "Nordic Youth-ch A 2019"]
[Site "Borgarnes"]
[Date "2019.02.17"]
[Round "6.18"]
[White "Olsen, William Alexander"]
[Black "Koota, Ilkka"]
[Result "0-1"]
[ECO "C60"]
[WhiteElo "1646"]
[BlackElo "1514"]
[Annotator "NA"]
[PlyCount "162"]
[EventDate "2019.02.03"]
[EventType "swiss"]
[EventCountry "ISL"]
[SourceTitle "playchess.com"]
[Source "ChessBase"]
[SourceQuality "1"]
[TimeControl "5400+30"]

1. e4 {[%emt 0:00:00]} e5 2. Nf3 {[%emt 0:00:00]} Nc6 {[%emt 0:00:00]} 3. Bb5 g6 4. O-O {[%emt 0:03:27]} Bg7 {[%emt 0:03:07]} 5. c3 {[%emt 0:00:20]} a6 {[%emt 0:00:08]} 6. Ba4 {[%emt 0:00:30]} d6 {[%emt 0:00:12]} 7. h3 {[%emt 0:01:17]} Bd7 {[%emt 0:00:49]} 8. d4 h6 {[%emt 0:03:53]} 9. Be3 {[%emt 0:07:13]} Nf6 10. Bc2 {[%emt 0:04:30]} O-O {[%emt 0:00:44]} 11. Nbd2 {[%emt 0:01:19]} Re8 {[%emt 0:00:39]} 12. Re1 {[%emt 0:05:29]} Nh7 {[%emt 0:01:24]} 13. Bb3 {[%emt 0:15:02]} Na5 {[%emt 0:03:36]} 14. Nh2 {[%emt 0:12:17]} Nxb3 {[%emt 0:01:36]} 15. Qxb3 {[%emt 0:00:16]} b5 {[%emt 0:00:56]} 16. Rad1 {[%emt 0:02:06]} Be6 {[%emt 0:00:43]} 17. d5 {[%emt 0:01:02]} Bd7 {[%emt 0:00:43]} 18. c4 {[%emt 0:04:30]} f5 {[%emt 0:03:09]} 19. f3 {[%emt 0:04:29]} f4 {[%emt 0:00:43]} 20. Bf2 {[%emt 0:00:06]} h5 {[%emt 0:01:25]} 21. Qd3 {[%emt 0:04:24]} g5 {[%emt 0:00:32]} 22. Qf1 {[%emt 0:04:27]} Nf6 {[%emt 0:00:54]} 23. g4 {[%emt 0:00:51]} fxg3 {[%emt 0:01:30]} 24. Bxg3 {[%emt 0:00:22]} h4 {[%emt 0:00:30]} 25. Bf2 {[%emt 0:00:22]} Nh5 {[%emt 0:00:17]} 26. Be3 {[%emt 0:00:32]} Kh7 {[%emt 0:03:16]} 27. Qg2 {[%emt 0:01:03]} Rg8 {[%emt 0:01:00]} 28. Ng4 {[%emt 0:01:05]} Nf4 {[%emt 0:02:37]} 29. Qf1 {[%emt 0:03:35]} bxc4 {[%emt 0:06:26]} 30. Nxc4 {[%emt 0:01:07]} Bb5 {[%emt 0:00:29]} 31. b3 {[%emt 0:00:22]} a5 {[%emt 0:01:17]} 32. Bxf4 {[%emt 0:02:18]} exf4 {[%emt 0:01:05]} 33. Qd3 {[%emt 0:00:38]} Kh8 {[%emt 0:00:41]} 34. a4 {[%emt 0:03:23]} Bxc4 {[%emt 0:02:46]} 35. Qxc4 {[%emt 0:01:08]} Qd7 {[%emt 0:01:02]} 36. Rd3 {[%emt 0:03:22]} Rgc8 {[%emt 0:03:11]} 37. Rc1 {[%emt 0:04:29]} Rab8 {[%emt 0:05:58]} 38. Kg2 {[%emt 0:00:46]} Rb6 {[%emt 0:01:33]} 39. Nf2 {[%emt 0:03:16]} c5 {[%emt 0:00:18]} 40. Nd1 {[%emt 0:02:06]} Ra8 {[%emt 0:00:31]} 41. Qc2 {[%emt 0:01:48]} Rab8 {[%emt 0:01:53]} 42. Rb1 {[%emt 0:01:10]} Rb4 {[%emt 0:00:27]} 43. Nb2 {[%emt 0:00:40]} Bxb2 {[%emt 0:00:54]} 44. Qxb2+ {[%emt 0:01:02]} Qg7 {[%emt 0:00:11]} 45. Rdd1 {[%emt 0:03:02]} c4 {[%emt 0:01:50]} 46. Qxg7+ {[%emt 0:00:51]} Kxg7 {[%emt 0:00:01]} 47. e5 {[%emt 0:00:25]} Rxb3 {[%emt 0:00:17]} 48. Rbc1 {[%emt 0:00:26]} Rb2+ {[%emt 0:00:44]} 49. Kg1 {[%emt 0:00:12]} R2b4 {[%emt 0:00:47]} 50. exd6 {[%emt 0:00:23]} Rxa4 51. Rd4 {[%emt 0:00:30]} Ra3 {[%emt 0:00:34]} 52. Rdxc4 {[%emt 0:00:51]} Rd8 {[%emt 0:01:14]} 53. Rc7+ {[%emt 0:01:05]} Kf6 {[%emt 0:00:16]} 54. R1c6 {[%emt 0:00:14]} Rxf3 {[%emt 0:00:20]} 55. d7+ {[%emt 0:00:46]} Ke5 {[%emt 0:01:01]} 56. Re6+ {[%emt 0:00:20]} Kxd5 {[%emt 0:00:04]} 57. Re8 {[%emt 0:00:11]} Kd6 {[%emt 0:00:06]} 58. Ra7 {[%emt 0:00:43]} Rxd7 {[%emt 0:00:09]} 59. Rxa5 {[%emt 0:00:32]} Re7 {[%emt 0:02:20]} 60. Ra6+ {[%emt 0:00:47]} Kd7 {[%emt 0:00:07]} 61. Rb8 {[%emt 0:00:16]} Rxh3 {[%emt 0:00:16]} 62. Rb7+ {[%emt 0:00:45]} Ke8 {[%emt 0:00:06]} 63. Rb8+ {[%emt 0:00:31]} Kf7 {[%emt 0:00:08]} 64. Rb5 {[%emt 0:00:26]} Rg3+ {[%emt 0:00:14]} 65. Kf2 {[%emt 0:00:13]} Re6 {[%emt 0:00:21]} 66. Rf5+ {[%emt 0:00:34]} Kg6 {[%emt 0:00:01]} 67. Rxg5+ {[%emt 0:00:27]} Rxg5 {[%emt 0:00:37]} 68. Rxe6+ {[%emt 0:00:08]} Kf5 {[%emt 0:00:05]} 69. Re1 {[%emt 0:00:27]} h3 {[%emt 0:00:14]} 70. Rh1 {[%emt 0:00:44]} Rg2+ {[%emt 0:00:09]} 71. Kf3 {[%emt 0:00:11]} Rg3+ {[%emt 0:00:07]} 72. Kf2 {[%emt 0:01:11]} Kg4 {[%emt 0:00:05]} 73. Rh2 {[%emt 0:00:26]} f3 {[%emt 0:00:16]} 74. Ke3 {[%emt 0:00:16]} Rg2 {[%emt 0:00:11]} 75. Rxg2+ {[%emt 0:00:48]} fxg2 {[%emt 0:00:07]} 76. Kf2 {[%emt 0:00:08]} Kf4 {[%emt 0:00:06]} 77. Kg1 {[%emt 0:00:04]} Kf3 {[%emt 0:00:05]} 78. Kh2 {[%emt 0:00:08]} Kf2 {[%emt 0:00:04]} 79. Kxh3 {[%emt 0:00:06]} g1=Q {[%emt 0:00:10]} 80. Kh4 {[%emt 0:00:16]} Qg6 {[%emt 0:00:05]} 81. Kh3 {[%emt 0:00:10]} Qg3# 0-1

[Event "Nordic Youth-ch A 2019"]
[Site "Borgarnes"]
[Date "2019.02.17"]
[Round "6.19"]
[White "Jaakkola, Niklas"]
[Black "Medhus, Vitus Bondo"]
[Result "1-0"]
[ECO "B35"]
[WhiteElo "1635"]
[BlackElo "1788"]
[Annotator "NA"]
[PlyCount "117"]
[EventDate "2019.02.03"]
[EventType "swiss"]
[EventCountry "ISL"]
[SourceTitle "playchess.com"]
[Source "ChessBase"]
[SourceQuality "1"]
[TimeControl "5400+30"]

1. e4 {[%emt 0:00:00]} c5 {[%emt 0:00:00]} 2. Nf3 {[%emt 0:00:00]} g6 {[%emt 0:00:00]} 3. d4 {[%emt 0:00:00]} cxd4 {[%emt 0:00:00]} 4. Nxd4 {[%emt 0:00:00]} Bg7 {[%emt 0:00:15]} 5. Nc3 {[%emt 0:00:07]} Nc6 {[%emt 0:00:12]} 6. Be3 {[%emt 0:00:56]} Nf6 {[%emt 0:00:22]} 7. Bc4 {[%emt 0:03:42]} Qa5 {[%emt 0:00:37]} 8. O-O {[%emt 0:04:04]} O-O {[%emt 0:00:40]} 9. Bb3 {[%emt 0:13:34]} d6 {[%emt 0:00:36]} 10. h3 {[%emt 0:02:08]} Bd7 {[%emt 0:00:37]} 11. Re1 {[%emt 0:07:21]} Rac8 {[%emt 0:00:58]} 12. Rc1 {[%emt 0:13:39]} Rfd8 {[%emt 0:02:49]} 13. a3 {[%emt 0:27:20]} Ne5 {[%emt 0:01:53]} 14. Qe2 {[%emt 0:02:35]} a6 {[%emt 0:01:41]} 15. Bf4 {[%emt 0:04:34]} Nh5 {[%emt 0:01:51]} 16. Bd2 {[%emt 0:01:48]} Qb6 {[%emt 0:01:37]} 17. Be3 {[%emt 0:01:50]} Re8 {[%emt 0:07:58]} 18. Ne6 {[%emt 0:02:17]} Qa5 {[%emt 0:02:41]} 19. Nxg7 {[%emt 0:00:07]} Nxg7 {[%emt 0:00:48]} 20. Nd5 {[%emt 0:01:23]} Rc6 {[%emt 0:01:49]} 21. f4 {[%emt 0:00:57]} Bxh3 {[%emt 0:11:29]} 22. gxh3 {[%emt 0:00:24]} Nd7 {[%emt 0:00:58]} 23. Bd2 {[%emt 0:03:58]} Qd8 {[%emt 0:00:42]} 24. Kh2 {[%emt 0:02:14]} e6 {[%emt 0:00:34]} 25. Nb4 {[%emt 0:00:58]} Rc8 {[%emt 0:00:37]} 26. Nd3 {[%emt 0:00:14]} e5 {[%emt 0:01:35]} 27. fxe5 {[%emt 0:00:40]} Nxe5 {[%emt 0:00:37]} 28. Nxe5 {[%emt 0:00:32]} Rxe5 {[%emt 0:00:10]} 29. Bf4 {[%emt 0:00:11]} Rh5 {[%emt 0:00:34]} 30. Qf2 {[%emt 0:01:14]} Qd7 {[%emt 0:00:27]} 31. Qg3 {[%emt 0:00:49]} Ne6 {[%emt 0:00:44]} 32. Bxe6 {[%emt 0:00:13]} Qxe6 {[%emt 0:00:17]} 33. Bxd6 {[%emt 0:00:58]} Rd8 {[%emt 0:02:11]} 34. e5 {[%emt 0:00:41]} f6 {[%emt 0:01:07]} 35. Qb3 {[%emt 0:01:11]} Re8 {[%emt 0:00:53]} 36. exf6 {[%emt 0:01:11]} Rxh3+ {[%emt 0:00:48]} 37. Qxh3 {[%emt 0:00:10]} Qxd6+ {[%emt 0:00:11]} 38. Qg3 {[%emt 0:00:14]} Qd2+ {[%emt 0:00:15]} 39. Qg2 {[%emt 0:00:18]} Qf4+ {[%emt 0:00:32]} 40. Kg1 {[%emt 0:01:17]} Qd4+ {[%emt 0:00:35]} 41. Qf2 {[%emt 0:00:22]} Qg4+ {[%emt 0:00:23]} 42. Kf1 {[%emt 0:00:13]} Qh3+ {[%emt 0:00:40]} 43. Qg2 {[%emt 0:00:28]} Qf5+ {[%emt 0:00:34]} 44. Kg1 {[%emt 0:00:47]} Qc5+ {[%emt 0:00:40]} 45. Kh2 {[%emt 0:00:35]} Qh5+ {[%emt 0:01:49]} 46. Qh3 {[%emt 0:00:14]} Re2+ {[%emt 0:00:08]} 47. Rxe2 {[%emt 0:00:15]} Qxe2+ {[%emt 0:00:13]} 48. Qg2 {[%emt 0:00:02]} Qe5+ {[%emt 0:01:21]} 49. Kh1 {[%emt 0:00:12]} Qh5+ {[%emt 0:00:52]} 50. Kg1 {[%emt 0:00:20]} Qc5+ {[%emt 0:00:25]} 51. Kf1 {[%emt 0:00:18]} Qf5+ {[%emt 0:00:36]} 52. Qf2 {[%emt 0:02:31]} Qh3+ {[%emt 0:00:07]} 53. Ke2 {[%emt 0:01:02]} Qh5+ {[%emt 0:00:34]} 54. Kd3 {[%emt 0:00:50]} Qd5+ {[%emt 0:00:50]} 55. Kc3 {[%emt 0:00:58]} a5 {[%emt 0:01:10]} 56. Qd4 {[%emt 0:01:28]} Qf3+ {[%emt 0:01:20]} 57. Kc4 {[%emt 0:00:37]} b5+ {[%emt 0:01:56]} 58. Kc5 {[%emt 0:00:51]} h5 {[%emt 0:01:33]} 59. Qd5+ {[%emt 0:00:15]} 1-0